fUSD/lending_fUSD_20240318
["ID","MTS","AMOUNT","RATE_DAILY","PERIOD"]
[319476804,1710799915250,-1162.86,0.00023287,2]
[319476805,1710799915260,-500.0,0.00023287,2]
[319476806,1710799915269,-539.59,0.00023287,2]
[319476807,1710799915279,-500.0,0.00023287,2]
[319476808,1710799915289,-1284.59,0.00023287,2]
[319476809,1710799915298,-1343.86,0.00023287,2]
[319476810,1710799915308,-2423.47,0.00023287,2]
[319476811,1710799915317,-500.0,0.00023287,2]
[319476812,1710799915326,-790.0,0.00023287,2]
[319476813,1710799915336,-1561.78,0.00023287,2]
[319476814,1710799915346,-2345.93,0.00023287,2]
[319476815,1710799915355,-1543.03,0.00023287,2]
[319476816,1710799915365,-500.0,0.00023287,2]
[319476817,1710799915374,-688.89,0.00023287,2]
[319476818,1710799915384,-500.0,0.00023287,2]
[319476819,1710799915394,-500.0,0.00023287,2]
[319476820,1710799915404,-1604.71,0.00023287,2]
[319476821,1710799915413,-500.0,0.00023287,2]
[319476822,1710799915423,-443.71387883,0.00023287,2]
[319476823,1710799915434,-779.42,0.00023287,2]
[319476824,1710799915444,-500.0,0.00023287,2]
[319476825,1710799915454,-500.0,0.00023287,2]
[319476826,1710799915463,-1455.91,0.00023287,2]
[319476827,1710799915473,-964.51,0.00023287,2]
[319476828,1710799915483,-500.0,0.00023287,2]
[319476829,1710799915492,-865.84,0.00023287,2]
[319476830,1710799915502,-500.0,0.00023287,2]
[319476831,1710799915512,-1883.82,0.00023287,2]
[319476832,1710799915521,-1347.47,0.00023287,2]
[319476833,1710799915531,-278.46955336,0.00023287,2]
[319476834,1710799915541,-500.0,0.00023287,2]
[319476835,1710799915551,-500.0,0.00023287,2]
[319476836,1710799915561,-615.15,0.00023287,2]
[319476837,1710799915572,-500.0,0.00023287,2]
[319476838,1710799915585,-500.0,0.00023287,2]
[319476839,1710799915595,-743.05,0.00023287,2]
[319476840,1710799915605,-500.0,0.00023287,2]
[319476841,1710799915615,-1288.43,0.00023287,2]
[319476842,1710799915625,-1050.86,0.00023287,2]
[319476843,1710799915635,-532.05,0.00023287,2]
[319476844,1710799915646,-568.35,0.00023287,2]
[319476845,1710799915656,-500.0,0.00023287,2]
[319476846,1710799915667,-500.0,0.00023287,2]
[319476847,1710799915678,-500.0,0.00023287,2]
[319476848,1710799915687,-500.0,0.00023287,2]
[319476849,1710799915697,-500.0,0.00023287,2]
[319476850,1710799915707,-500.0,0.00023287,2]
[319476851,1710799915717,-801.95,0.00023287,2]
[319476852,1710799915727,-500.0,0.00023287,2]
[319476853,1710799915741,-3692.13,0.00023287,2]
[319476854,1710799915751,-1387.79,0.00023287,2]
[319476855,1710799915761,-1021.88,0.00023287,2]
[319476856,1710799915771,-500.0,0.00023287,2]
[319476857,1710799915781,-1736.34,0.00023287,2]
[319476858,1710799915790,-500.0,0.00023287,2]
[319476859,1710799915799,-2682.4,0.00023287,2]
[319476860,1710799915809,-722.05,0.00023287,2]
[319476861,1710799915819,-917.72,0.00023287,2]
[319476862,1710799915829,-500.0,0.00023287,2]
[319476863,1710799915838,-1582.16,0.00023287,2]
[319476864,1710799915848,-500.0,0.00023287,2]
[319476865,1710799915857,-500.0,0.00023287,2]
[319476866,1710799915867,-500.0,0.00023287,2]
[319476867,1710799915878,-500.0,0.00023287,2]
[319476868,1710799915887,-500.0,0.00023287,2]
[319476869,1710799915898,-500.0,0.00023287,2]
[319476870,1710799915908,-500.0,0.00023287,2]
[319476871,1710799915918,-500.0,0.00023287,2]
[319476872,1710799915928,-500.0,0.00023287,2]
[319476873,1710799915937,-899.67,0.00023287,2]
[319476874,1710799915947,-500.0,0.00023287,2]
[319476875,1710799915957,-1197.99,0.00023287,2]
[319476876,1710799915966,-2570.57,0.00023287,2]
[319476877,1710799915976,-832.49,0.00023287,2]
[319476878,1710799915986,-500.0,0.00023287,2]
[319476879,1710799915996,-500.0,0.00023287,2]
[319476880,1710799916006,-500.0,0.00023287,2]
[319476881,1710799916015,-500.0,0.00023287,2]
[319476882,1710799916025,-2336.68,0.00023287,2]
[319476883,1710799916035,-714.57,0.00023287,2]
[319476884,1710799916045,-500.0,0.00023287,2]
[319476885,1710799916055,-572.14,0.00023287,2]
[319476886,1710799916064,-500.0,0.00023287,2]
[319476887,1710799916074,-570.84,0.00023287,2]
[319476888,1710799916083,-500.0,0.00023287,2]
[319476889,1710799916094,-1267.22,0.00023287,2]
[319476890,1710799916104,-500.0,0.00023287,2]
[319476891,1710799916113,-713.53,0.00023287,2]
[319476892,1710799916123,-1986.27,0.00023287,2]
[319476893,1710799916133,-500.0,0.00023287,2]
[319476894,1710799916143,-500.0,0.00023287,2]
[319476895,1710799916154,-500.0,0.00023287,2]
[319476896,1710799916164,-500.0,0.00023287,2]
[319476897,1710799916174,-1031.5,0.00023287,2]
[319476898,1710799916184,-500.0,0.00023287,2]
[319476899,1710799916195,-500.0,0.00023287,2]
[319476900,1710799916204,-1487.73,0.00023287,2]
[319476901,1710799916214,-500.0,0.00023287,2]
[319476902,1710799916225,-1462.06,0.00023287,2]
[319476903,1710799916235,-2831.64,0.00023287,2]
[319476904,1710799916244,-577.07450085,0.00023287,2]
[319476905,1710799916254,-500.0,0.00023287,2]
[319476906,1710799916264,-662.67,0.00023287,2]
[319476907,1710799916274,-1113.91,0.00023287,2]
[319476908,1710799916285,-1374.98,0.00023287,2]
[319476909,1710799916295,-500.0,0.00023287,2]
[319476910,1710799916304,-2453.88,0.00023287,2]
[319476911,1710799916314,-584.72,0.00023287,2]
[319476912,1710799916324,-500.0,0.00023287,2]
[319476913,1710799916334,-1349.99,0.00023287,2]
[319476914,1710799916344,-1580.15,0.00023287,2]
[319476915,1710799916355,-164.99167707,0.00023287,2]
[319476916,1710799916365,-1466.21,0.00023287,2]
[319476917,1710799916376,-500.0,0.00023287,2]
[319476918,1710799916386,-500.0,0.00023287,2]
[319476919,1710799916397,-1118.72,0.00023287,2]
[319476920,1710799916407,-500.0,0.00023287,2]
[319476921,1710799916418,-606.91,0.00023287,2]
[319476922,1710799916427,-1958.41,0.00023287,2]
[319476923,1710799916437,-500.0,0.00023287,2]
[319476924,1710799916448,-605.4,0.00023287,2]
[319476925,1710799916458,-500.0,0.00023287,2]
[319476926,1710799916469,-500.0,0.00023287,2]
[319476927,1710799916479,-500.0,0.00023287,2]
[319476928,1710799916489,-500.0,0.00023287,2]
[319476929,1710799916499,-942.42,0.00023287,2]
[319476930,1710799916509,-500.0,0.00023287,2]
[319476931,1710799916520,-569.15,0.00023287,2]
[319476932,1710799916530,-941.12,0.00023287,2]
[319476933,1710799916541,-1400.41,0.00023287,2]
[319476934,1710799916551,-500.0,0.00023287,2]
[319476935,1710799916562,-500.0,0.00023287,2]
[319476936,1710799916574,-500.0,0.00023287,2]
[319476937,1710799916589,-500.0,0.00023287,2]
[319476938,1710799916599,-1781.44,0.00023287,2]
[319476939,1710799916609,-151.0,0.00023287,7]
[319476940,1710799916620,-151.0,0.00023287,7]
[319476941,1710799916631,-199.22650125,0.00023287,2]
[319476942,1710799916641,-500.0,0.00023287,2]
[319476943,1710799916653,-1912.95,0.00023287,2]
[319476944,1710799916663,-713.68,0.00023287,2]
[319476945,1710799916674,-1203.57,0.00023287,2]
[319476946,1710799916684,-905.72,0.00023287,2]
[319476947,1710799916694,-500.0,0.00023287,2]
[319476948,1710799916705,-500.0,0.00023287,2]
[319476949,1710799916715,-4393.41,0.00023287,2]
[319476950,1710799916725,-2303.75,0.00023287,2]
[319476951,1710799916736,-500.0,0.00023287,2]
[319476952,1710799916746,-1144.14,0.00023287,2]
[319476953,1710799916756,-1401.22,0.00023287,2]
[319476954,1710799916767,-1229.49,0.00023287,2]
[319476955,1710799916776,-511.29,0.00023287,2]
[319476956,1710799916786,-500.0,0.00023287,2]
[319476957,1710799916797,-1432.28,0.00023287,2]
[319476958,1710799916806,-568.95368268,0.00023287,2]
[319476959,1710799916816,-500.0,0.00023287,2]
[319476960,1710799916826,-516.82,0.00023287,2]
[319476961,1710799916835,-500.0,0.00023287,2]
[319476962,1710799916845,-504.05279815,0.00023287,2]
[319476963,1710799916855,-1305.33,0.00023287,2]
[319476964,1710799916864,-581.47,0.00023287,2]
[319476965,1710799916875,-678.53,0.00023287,2]
[319476966,1710799916885,-737.52,0.00023287,2]
[319476967,1710799916896,-500.0,0.00023287,2]
[319476968,1710799916906,-1022.21,0.00023287,2]
[319476969,1710799916915,-1654.91,0.00023287,2]
[319476970,1710799916925,-500.0,0.00023287,2]
[319476971,1710799916935,-500.0,0.00023287,2]
[319476972,1710799916945,-302.990116,0.00023287,7]
[319476973,1710799916954,-302.990116,0.00023287,7]
[319476974,1710799916964,-745.31,0.00023287,2]
[319476975,1710799916973,-302.990116,0.00023287,7]
[319476976,1710799916984,-500.0,0.00023287,2]
[319476977,1710799916994,-302.990116,0.00023287,7]
[319476978,1710799917003,-7202.93,0.00023287,2]
[319476979,1710799917013,-20689.66,0.00023287,2]
[319476980,1710799917023,-2992.02,0.00023287,2]
[319476981,1710799917033,-500.0,0.00023287,2]
[319476982,1710799917043,-638.22,0.00023287,2]
[319476983,1710799917052,-1157.8,0.00023287,2]
[319476984,1710799917062,-1110.24,0.00023287,2]
[319476985,1710799917072,-1088.66,0.00023287,2]
[319476986,1710799917081,-500.0,0.00023287,2]
[319476987,1710799917092,-1090.38,0.00023287,2]
[319476988,1710799917101,-604.23541893,0.00023287,2]
[319476989,1710799917111,-1367.92,0.00023287,2]
[319476990,1710799917121,-500.0,0.00023287,2]
[319476991,1710799917362,-8212.3,0.00023287,2]
[319476992,1710799917379,-500.0,0.00023287,2]
[319476993,1710799917389,-6843.13,0.00023287,2]
[319476994,1710799917398,-1716.46,0.00023287,2]
[319476995,1710799917407,-640.557938,0.00023287,7]
[319476996,1710799917416,-640.557938,0.00023287,7]
[319476997,1710799917425,-1412.21,0.00023287,2]
[319476998,1710799917435,-500.0,0.00023287,2]
[319476999,1710799917445,-500.0,0.00023287,2]
[319477000,1710799917454,-622.92,0.00023287,2]
[319477001,1710799917464,-605.07,0.00023287,2]
[319477002,1710799917473,-640.557938,0.00023287,7]
[319477003,1710799917483,-640.557938,0.00023287,7]
[319477004,1710799917492,-738.47,0.00023287,2]
[319477005,1710799917501,-2375.9,0.00023287,2]
[319477006,1710799917511,-642.05,0.00023287,2]
[319477007,1710799917520,-1814.94,0.00023287,2]
[319477008,1710799917530,-720.26,0.00023287,2]
[319477009,1710799917540,-500.0,0.00023287,2]
[319477010,1710799917550,-500.0,0.00023287,2]
[319477011,1710799917560,-7701.15,0.00023287,2]
[319477012,1710799917569,-2621.03,0.00023287,2]
[319477013,1710799917582,-70618.05,0.00023287,2]
[319477014,1710799917592,-1283.55,0.00023287,2]
[319477015,1710799917602,-867.51,0.00023287,2]
[319477016,1710799917612,-500.0,0.00023287,2]
[319477017,1710799917622,-933.88,0.00023287,2]
[319477018,1710799917632,-500.0,0.00023287,2]
[319477019,1710799917642,-500.0,0.00023287,2]
[319477020,1710799917654,-651.4,0.00023287,2]
[319477021,1710799917664,-1968.24,0.00023287,2]
[319477022,1710799917674,-1507.28,0.00023287,2]
[319477023,1710799917684,-15625.12,0.00023287,2]
[319477024,1710799917694,-500.0,0.00023287,2]
[319477025,1710799917704,-335.56485942,0.00023287,2]
[319477026,1710799917713,-2930.24,0.00023287,2]
[319477027,1710799917722,-500.0,0.00023287,2]
[319477028,1710799917731,-386.07,0.00023287,2]
[319477029,1710799917741,-500.0,0.00023287,2]
[319477030,1710799917750,-908.19,0.00023287,2]
[319477031,1710799917761,-836.99,0.00023287,2]
[319477032,1710799917773,-1649.1,0.00023287,2]
[319477033,1710799917783,-500.0,0.00023287,2]
[319477034,1710799917793,-3638.93,0.00023287,2]
[319477035,1710799917802,-1000.59,0.00023287,2]
[319477036,1710799917811,-500.0,0.00023287,2]
[319477037,1710799917820,-500.0,0.00023287,2]
[319477038,1710799917830,-2240.25,0.00023287,2]
[319477039,1710799917839,-500.0,0.00023287,2]
[319477040,1710799917849,-500.0,0.00023287,2]
[319477041,1710799917858,-500.0,0.00023287,2]
[319477042,1710799917868,-500.0,0.00023287,2]
[319477043,1710799917877,-876.56,0.00023287,2]
[319477044,1710799917887,-387.74252806,0.00023287,2]
[319477045,1710799917897,-1827.91,0.00023287,2]
[319477046,1710799917907,-500.0,0.00023287,2]
[319477047,1710799917917,-2226.67,0.00023287,2]
[319477048,1710799917926,-4659.24,0.00023287,2]
[319477049,1710799917936,-500.0,0.00023287,2]
[319477050,1710799917945,-500.0,0.00023287,2]
[319477051,1710799917954,-500.0,0.00023287,2]
[319477052,1710799917963,-3729.26,0.00023287,2]
[319477053,1710799917972,-500.0,0.00023287,2]
[319477054,1710799917981,-3606.56,0.00023287,2]
[319477055,1710799917991,-500.0,0.00023287,2]
[319477056,1710799918000,-1207.02,0.00023287,2]
[319477057,1710799918010,-182.78322153,0.00023287,2]
[319477058,1710799918020,-963.32,0.00023287,2]
[319477059,1710799918029,-28470.72,0.00023287,2]
[319477060,1710799918039,-2980.27,0.00023287,2]
[319477061,1710799918048,-500.0,0.00023287,2]
[319477062,1710799918059,-1000.56,0.00023287,2]
[319477063,1710799918069,-500.0,0.00023287,2]
[319477064,1710799918079,-500.0,0.00023287,2]
[319477065,1710799918089,-1014.54,0.00023287,2]
[319477066,1710799918098,-500.0,0.00023287,2]
[319477067,1710799918108,-1007.55,0.00023287,2]
[319477068,1710799918117,-500.0,0.00023287,2]
[319477069,1710799918127,-12991.16,0.00023287,2]
[319477070,1710799918137,-1967.21,0.00023287,2]
[319477071,1710799918146,-825.64,0.00023287,2]
[319477072,1710799918163,-500.0,0.00023287,2]
[319477073,1710799918173,-500.0,0.00023287,2]
[319477074,1710799918183,-989.42,0.00023287,2]
[319477075,1710799918192,-3061.78,0.00023287,2]
[319477076,1710799918201,-3350.06,0.00023287,2]
[319477077,1710799918210,-500.0,0.00023287,2]
[319477078,1710799918219,-1418.83,0.00023287,2]
[319477079,1710799918229,-578.72,0.00023287,2]
[319477080,1710799918238,-500.0,0.00023287,2]
[319477081,1710799918247,-1283.92,0.00023287,2]
[319477082,1710799918257,-1017.47,0.00023287,2]
[319477083,1710799918266,-500.0,0.00023287,2]
[319477084,1710799918276,-500.0,0.00023287,2]
[319477085,1710799918289,-500.0,0.00023287,2]
[319477086,1710799918299,-793.34,0.00023287,2]
[319477087,1710799918309,-500.0,0.00023287,2]
[319477088,1710799918318,-4863.68,0.00023287,2]
[319477089,1710799918328,-3058.85,0.00023287,2]
[319477090,1710799918338,-544.38,0.00023287,2]
[319477091,1710799918347,-1383.54,0.00023287,2]
[319477092,1710799918357,-500.0,0.00023287,2]
[319477093,1710799918366,-500.0,0.00023287,2]
[319477094,1710799918375,-3420.67,0.00023287,2]
[319477095,1710799918384,-1467.98,0.00023287,2]
[319477096,1710799918394,-500.0,0.00023287,2]
[319477097,1710799918406,-500.0,0.00023287,2]
[319477098,1710799918415,-500.0,0.00023287,2]
[319477099,1710799918426,-909.74,0.00023287,2]
[319477100,1710799918435,-500.0,0.00023287,2]
[319477101,1710799918445,-500.0,0.00023287,2]
[319477102,1710799918455,-616.14,0.00023287,2]
[319477103,1710799918465,-500.0,0.00023287,2]
[319477104,1710799918474,-1472.05,0.00023287,2]
[319477105,1710799918483,-1391.49,0.00023287,2]
[319477106,1710799918492,-500.0,0.00023287,2]
[319477107,1710799918501,-1026.28,0.00023287,2]
[319477108,1710799918511,-500.0,0.00023287,2]
[319477109,1710799918520,-501.4,0.00023287,2]
[319477110,1710799918529,-500.0,0.00023287,2]
[319477111,1710799918539,-500.0,0.00023287,2]
[319477112,1710799918548,-500.0,0.00023287,2]
[319477113,1710799918558,-1044.22,0.00023287,2]
[319477114,1710799918567,-736.5,0.00023287,2]
[319477115,1710799918580,-500.0,0.00023287,2]
[319477116,1710799918589,-500.0,0.00023287,2]
[319477117,1710799918598,-1726.54,0.00023287,2]
[319477118,1710799918607,-12189.86,0.00023287,2]
[319477119,1710799918617,-2302.64,0.00023287,2]
[319477120,1710799918626,-1165.44,0.00023287,2]
[319477121,1710799918635,-1530.51,0.00023287,2]
[319477122,1710799918645,-383.20050045,0.00023287,2]
[319477123,1710799918657,-1316.33,0.00023287,2]
[319477124,1710799918667,-1375.05,0.00023287,2]
[319477125,1710799918677,-728.8,0.00023287,2]
[319477126,1710799918686,-515.52,0.00023287,2]
[319477127,1710799918695,-500.0,0.00023287,2]
[319477128,1710799918704,-1294.68,0.00023287,2]
[319477129,1710799918713,-500.0,0.00023287,2]
[319477130,1710799918722,-1925.65,0.00023287,2]
[319477131,1710799918731,-1545.51,0.00023287,2]
[319477132,1710799918740,-500.0,0.00023287,2]
[319477133,1710799918750,-6062.83,0.00023287,2]
[319477134,1710799918759,-1677.75,0.00023287,2]
[319477135,1710799918768,-500.0,0.00023287,2]
[319477136,1710799918777,-500.0,0.00023287,2]
[319477137,1710799918786,-630.76,0.00023287,2]
[319477138,1710799918795,-697.84,0.00023287,2]
[319477139,1710799918805,-1539.77,0.00023287,2]
[319477140,1710799918814,-1111.24,0.00023287,2]
[319477141,1710799918823,-500.0,0.00023287,2]
[319477142,1710799918832,-500.0,0.00023287,2]
[319477143,1710799918841,-1154.87,0.00023287,2]
[319477144,1710799918851,-500.0,0.00023287,2]
[319477145,1710799918860,-500.0,0.00023287,2]
[319477146,1710799918869,-2083.43,0.00023287,2]
[319477147,1710799918879,-500.0,0.00023287,2]
[319477148,1710799918888,-873.95,0.00023287,2]
[319477149,1710799918899,-572.93,0.00023287,2]
[319477150,1710799918909,-1218.6,0.00023287,2]
[319477151,1710799918918,-500.0,0.00023287,2]
[319477152,1710799918927,-500.0,0.00023287,2]
[319477153,1710799918936,-500.0,0.00023287,2]
[319477154,1710799918946,-762.41,0.00023287,2]
[319477155,1710799918956,-805.44,0.00023287,2]
[319477156,1710799918965,-2278.77,0.00023287,2]
[319477157,1710799918974,-500.0,0.00023287,2]
[319477158,1710799918984,-2011.92,0.00023287,2]
[319477159,1710799918993,-500.0,0.00023287,2]
[319477160,1710799919002,-2062.21,0.00023287,2]
[319477161,1710799919011,-971.93,0.00023287,2]
[319477162,1710799919021,-500.0,0.00023287,2]
[319477163,1710799919030,-500.0,0.00023287,2]
[319477164,1710799919039,-768.87,0.00023287,2]
[319477165,1710799919049,-1606.59,0.00023287,2]
[319477166,1710799919059,-500.0,0.00023287,2]
[319477167,1710799919068,-1340.16,0.00023287,2]
[319477168,1710799919077,-500.0,0.00023287,2]
[319477169,1710799919087,-500.0,0.00023287,2]
[319477170,1710799919096,-151.0,0.00023287,7]
[319477171,1710799919105,-151.0,0.00023287,7]
[319477172,1710799919114,-1007.76,0.00023287,2]
[319477173,1710799919124,-500.0,0.00023287,2]
[319477174,1710799919133,-4162.89,0.00023287,2]
[319477175,1710799919142,-1051.06,0.00023287,2]
[319477176,1710799919152,-504.57746852,0.00023287,2]
[319477177,1710799919162,-500.0,0.00023287,2]
[319477178,1710799919171,-699.3,0.00023287,2]
[319477179,1710799919181,-518.73,0.00023287,2]
[319477180,1710799919190,-500.0,0.00023287,2]
[319477181,1710799919199,-1416.75,0.00023287,2]
[319477182,1710799919209,-1475.69,0.00023287,2]
[319477183,1710799919218,-1220.37,0.00023287,2]
[319477184,1710799919227,-1579.78,0.00023287,2]
[319477185,1710799919236,-960.76,0.00023287,2]
[319477186,1710799919246,-685.26,0.00023287,2]
[319477187,1710799919254,-500.0,0.00023287,2]
[319477188,1710799919263,-500.0,0.00023287,2]
[319477189,1710799919273,-598.24,0.00023287,2]
[319477190,1710799919282,-3689.48,0.00023287,2]
[319477191,1710799919291,-1883.02,0.00023287,2]
[319477192,1710799919301,-500.0,0.00023287,2]
[319477193,1710799919310,-725.93,0.00023287,2]
[319477194,1710799919320,-500.0,0.00023287,2]
[319477195,1710799919329,-500.0,0.00023287,2]
[319477196,1710799919338,-582.85,0.00023287,2]
[319477197,1710799919347,-575.57,0.00023287,2]
[319477198,1710799919356,-597.67,0.00023287,2]
[319477199,1710799919365,-945.24,0.00023287,2]
[319477200,1710799919375,-494.818151,0.00023287,7]
[319477201,1710799919385,-494.818151,0.00023287,7]
[319477202,1710799919394,-3264.27,0.00023287,2]
[319477203,1710799919404,-1114.59,0.00023287,2]
[319477204,1710799919414,-1101.09,0.00023287,2]
[319477205,1710799919423,-3081.47,0.00023287,2]
[319477206,1710799919432,-1090.35,0.00023287,2]
[319477207,1710799919442,-15199.29,0.00023287,2]
[319477208,1710799919451,-494.818151,0.00023287,7]
[319477209,1710799919460,-494.818145,0.00023287,7]
[319477210,1710799919469,-545.12,0.00023287,2]
[319477211,1710799919478,-525.35,0.00023287,2]
[319477212,1710799919487,-524.35,0.00023287,2]
[319477213,1710799919496,-926.2,0.00023287,2]
[319477214,1710799919506,-738.48,0.00023287,2]
[319477215,1710799919515,-500.0,0.00023287,2]
[319477216,1710799919525,-661.43,0.00023287,2]
[319477217,1710799919534,-521.01,0.00023287,2]
[319477218,1710799919543,-500.0,0.00023287,2]
[319477219,1710799919553,-1479.1,0.00023287,2]
[319477220,1710799919562,-2791.36,0.00023287,2]
[319477221,1710799919572,-3873.88,0.00023287,2]
[319477222,1710799919584,-500.0,0.00023287,2]
[319477223,1710799919593,-8062.17,0.00023287,2]
[319477224,1710799919602,-500.0,0.00023287,2]
[319477225,1710799919611,-388.01530551,0.00023287,2]
[319477226,1710799919621,-1368.38,0.00023287,2]
[319477227,1710799919713,-1469.15,0.00023287,2]
[319477228,1710799919722,-500.0,0.00023287,2]
[319477229,1710799919732,-578.84,0.00023287,2]
[319477230,1710799919741,-500.0,0.00023287,2]
[319477231,1710799919749,-500.0,0.00023287,2]
[319477232,1710799919758,-500.0,0.00023287,2]
[319477233,1710799919768,-500.0,0.00023287,2]
[319477234,1710799919777,-500.0,0.00023287,2]
[319477235,1710799919786,-625.58,0.00023287,2]
[319477236,1710799919795,-500.0,0.00023287,2]
[319477237,1710799919804,-500.0,0.00023287,2]
[319477238,1710799919813,-659.71,0.00023287,2]
[319477239,1710799919822,-1165.69,0.00023287,2]
[319477240,1710799919831,-500.0,0.00023287,2]
[319477241,1710799919840,-522.17,0.00023287,2]
[319477242,1710799919849,-500.0,0.00023287,2]
[319477243,1710799919858,-547.31,0.00023287,2]
[319477244,1710799919867,-4551.04,0.00023287,2]
[319477245,1710799919876,-1931.5,0.00023287,2]
[319477246,1710799919885,-500.0,0.00023287,2]
[319477247,1710799919894,-1852.16,0.00023287,2]
[319477248,1710799919903,-500.0,0.00023287,2]
[319477249,1710799919912,-5194.45,0.00023287,2]
[319477250,1710799919921,-4366.56,0.00023287,2]
[319477251,1710799919930,-2626.87,0.00023287,2]
[319477252,1710799919939,-1560.19,0.00023287,2]
[319477253,1710799919947,-500.0,0.00023287,2]
[319477254,1710799919956,-643.53,0.00023287,2]
[319477255,1710799919965,-4566.9,0.00023287,2]
[319477256,1710799919974,-574.42,0.00023287,2]
[319477257,1710799919983,-7356.66,0.00023287,2]
[319477258,1710799919993,-500.0,0.00023287,2]
[319477259,1710799920001,-2335.37,0.00023287,2]
[319477260,1710799920011,-1433.97,0.00023287,2]
[319477261,1710799920020,-1302.8,0.00023287,2]
[319477262,1710799920030,-500.0,0.00023287,2]
[319477263,1710799920038,-688.680588,0.00023287,7]
[319477264,1710799920047,-688.680588,0.00023287,7]
[319477265,1710799920056,-500.0,0.00023287,2]
[319477266,1710799920065,-12149.23,0.00023287,2]
[319477267,1710799920074,-500.0,0.00023287,2]
[319477268,1710799920084,-596.59,0.00023287,2]
[319477269,1710799920093,-500.0,0.00023287,2]
[319477270,1710799920102,-976.06,0.00023287,2]
[319477271,1710799920111,-500.0,0.00023287,2]
[319477272,1710799920121,-773.37,0.00023287,2]
[319477273,1710799920130,-688.680588,0.00023287,7]
[319477274,1710799920139,-688.680583,0.00023287,7]
[319477275,1710799920148,-500.0,0.00023287,2]
[319477276,1710799920157,-500.0,0.00023287,2]
[319477277,1710799920166,-500.0,0.00023287,2]
[319477278,1710799920176,-500.0,0.00023287,2]
[319477279,1710799920185,-12163.47,0.00023287,2]
[319477280,1710799920194,-500.0,0.00023287,2]
[319477281,1710799920204,-500.0,0.00023287,2]
[319477282,1710799920214,-259.82672184,0.00023287,2]
[319477283,1710799920223,-1666.88,0.00023287,2]
[319477284,1710799920233,-1040.95,0.00023287,2]
[319477285,1710799920243,-500.0,0.00023287,2]
[319477286,1710799920252,-4014.74,0.00023287,2]
[319477287,1710799920262,-676.8,0.00023287,2]
[319477288,1710799920271,-500.0,0.00023287,2]
[319477289,1710799920281,-2937.18,0.00023287,2]
[319477290,1710799920291,-798.37,0.00023287,2]
[319477291,1710799920300,-500.0,0.00023287,2]
[319477292,1710799920309,-514.53,0.00023287,2]
[319477293,1710799920319,-630.18,0.00023287,2]
[319477294,1710799920330,-1092.32,0.00023287,2]
[319477295,1710799920339,-179.51751306,0.00023287,2]
[319477296,1710799920349,-500.0,0.00023287,2]
[319477297,1710799920358,-4002.95,0.00023287,2]
[319477298,1710799920368,-500.0,0.00023287,2]
[319477299,1710799920377,-3032.32,0.00023287,2]
[319477300,1710799920387,-1825.34,0.00023287,2]
[319477301,1710799920398,-713.44,0.00023287,2]
[319477302,1710799920408,-500.0,0.00023287,2]
[319477303,1710799920418,-2538.34,0.00023287,2]